Cogmind - Beta 15 @@@ ROGUE MODE // 2025.09.12 @ 09:52:13 Player: winnking222 Result: Destroyed by S-27 Virus with Autogun Performance ------------- Evolutions (3) 1500 Regions Visited (9) 1800 Robots Destroyed (140) 700 Value Destroyed (5421) 5421 Prototype IDs (29) 580 Alien Tech Used (0) 0 Bonus (3318) 3318 TOTAL SCORE: 13319 Bonus ------- High Alert Combat Kills 859 Follower Combat Kills 759 Entered Garrisons 400 Used RIF Installer 1000 Aligned with FarCom 300 Cogmind --------- Core Integrity 0/700 Matter 182/300 Energy 315/315 System Corruption 8% Temperature Cool (0) Movement Hovering (540) Ox8 Location -7/Garrison Parts ------- > --- POWER (1) -------- Neutrino Core > --- PROPULSION (3) --- Gravmag System > --- UTILITY (6) ------ Improved Heat Sink High-capacity Storage Unit Improved Light Armor Plating Relay Coupler [Grunt] (18) Relay Coupler [Hunter] (12) > --- WEAPON (3) ------- Railgun Rocket Array Remote Datajack > --- INVENTORY (20) --- Light Quantum Reactor Advanced Heat Sink Large Storage Unit High-capacity Matter Pod (200) Experimental Sensor Array Improved Phase Shifter Improved Light Armor Plating Relay Coupler [NC] (31) Relay Coupler [NC] (22) Relay Coupler [NC] (22) Relay Coupler [Swarmer] (30) Relay Coupler [Grunt] (41) Relay Coupler [Grunt] (45) Relay Coupler [Grunt] (22) Relay Coupler [Sentry] (33) Relay Coupler [Behemoth] (14) Supersonic Drone Bay (1/1) Firepult Plasma Cutter Peak State ------------ > --- POWER ------------ Neutrino Core > --- PROPULSION ------- Light Treads Light Treads Light Treads > --- UTILITY ---------- Improved Heat Sink Improved Cooling System High-capacity Storage Unit Improved Medium Armor Plating Relay Coupler [Grunt] Relay Coupler [Hunter] > --- WEAPON ----------- Firepult Railgun > --- INVENTORY -------- Light Quantum Reactor Advanced Heat Sink Large Storage Unit High-capacity Matter Pod Experimental Sensor Array Improved Phase Shifter Improved Light Armor Plating Improved Light Armor Plating Relay Coupler [NC] Relay Coupler [NC] Relay Coupler [NC] Relay Coupler [Swarmer] Relay Coupler [Grunt] Relay Coupler [Grunt] Relay Coupler [Grunt] Relay Coupler [Sentry] Relay Coupler [Behemoth] Supersonic Drone Bay Rocket Array Plasma Cutter [Rating: 63] Favorites ----------- Power Ion Engine Engine Ion Engine Power Core Light Nuclear Core Propulsion Light Treads Treads Light Treads Leg Carbon-fiber Leg Wheel Wheel Hover Unit Gravmag System Flight Unit Improved VTOL Module Utility High-capacity Storage Unit Device Improved Heat Sink Storage High-capacity Storage Unit Processor Targeting Computer Hackware Relay Coupler [Grunt] Protection Improved Light Armor Plating Weapon Advanced Beam Rifle Energy Gun Advanced Beam Rifle Energy Cannon Improved EM Pulse Cannon Ballistic Gun Autogun Launcher Rocket Array Special Weapon Remote Datajack Special Melee Weapon Improved Datajack Build | -11 -10 -10 -10 -9 -8 -7 -7 -7 -7 ------- Run | Yrd Mat Min Exi Min Mat Fac Gar Fac Gar Slots Evolved 6 | . . . . . 4 2 . . . Power . | . . . . . . . . . . Propulsion 1 | . . . . . 1 . . . . Utility 4 | . . . . . 3 1 . . . Weapon 1 | . . . . . . 1 . . . Parts Attached 106 | 7 6 2 . 6 26 5 33 11 10 Power 11 | 1 1 . . 2 3 . 2 1 1 Engine 7 | 1 1 . . 2 2 . 1 . . Core 4 | . . . . . 1 . 1 1 1 Reactor . | . . . . . . . . . . Propulsion 29 | 2 . . . 1 7 2 9 4 4 Treads 10 | 2 . . . . . . 5 2 1 Leg 13 | . . . . . 5 2 4 1 1 Wheel 3 | . . . . 1 1 . . 1 . Hover 2 | . . . . . . . . . 2 Flight 1 | . . . . . 1 . . . . Utility 29 | 1 2 1 . 1 4 2 12 4 2 Device 12 | . 1 . . . 3 1 5 2 . Storage 3 | 1 1 1 . . . . . . . Processor 1 | . . . . . . . 1 . . Hackware 5 | . . . . . 1 . 3 1 . Protection 8 | . . . . 1 . 1 3 1 2 Artifact . | . . . . . . . . . . Weapon 37 | 3 3 1 . 2 12 1 10 2 3 Energy Gun 9 | 2 . . . . 4 1 2 . . Energy Cannon 5 | . . . . . 1 . 4 . . Ballistic Gun 16 | 1 2 1 . 1 7 . 2 1 1 Ballistic Cannon . | . . . . . . . . . . Launcher 3 | . 1 . . 1 . . . 1 . Special Weapon 3 | . . . . . . . 1 . 2 Impact Weapon . | . . . . . . . . . . Slashing Weapon . | . . . . . . . . . . Piercing Weapon . | . . . . . . . . . . Special Melee Weapon 1 | . . . . . . . 1 . . Unidentified Prototypes 5 | . . . . . 3 . . 2 . Parts Lost 34 | . . . . 2 5 3 12 7 5 Power 3 | . . . . . . . 3 . . Propulsion 16 | . . . . 1 3 2 4 2 4 Utility 10 | . . . . 1 1 . 5 2 1 Weapon 5 | . . . . . 1 1 . 3 . Highest Loss Streak 6 | . . . . 2 1 1 6 5 3 To Critical Strikes . | . . . . . . . . . . Average Backups 16 | 3 10 14 15 18 18 18 18 19 19 Power 2 | 2 3 3 2 4 4 3 2 1 1 Propulsion . | 1 1 1 1 . . . . . . Utility 7 | . 1 4 5 5 5 5 8 14 16 Weapon 5 | . 4 6 6 6 7 7 5 2 . Tool/Special . | . . . . . . . . . . Unused Backups 36 | . 1 . 2 1 5 1 8 2 16 Power 9 | . 1 . 2 1 2 . 1 1 1 Propulsion 1 | . . . . . . . 1 . . Utility 18 | . . . . . . . 3 . 15 Weapon 7 | . . . . . 3 1 2 1 . Tool/Special 1 | . . . . . . . 1 . . Average Slot Usage (%) 91 | . 89 100 100 99 82 76 91 93 85 Engine 7 | . 14 14 14 14 6 7 3 . . Core 2 | . . . . . 2 . 3 7 7 Treads 15 | . 28 28 28 27 . . 14 . 15 Leg 6 | . . . . . 15 16 6 13 . Wheel 1 | . . . . . 7 . . 4 . Device 13 | . 4 14 14 13 15 23 18 7 13 Storage 10 | . 14 14 14 14 9 7 7 7 7 Hackware 5 | . . . . . 2 . 5 18 19 Protection 3 | . . . . . 3 1 6 9 4 Energy Gun 5 | . 6 . . . 1 21 14 . . Energy Cannon 1 | . . . . . . . 3 1 4 Ballistic Gun 13 | . 20 27 28 27 15 . . 13 2 Special Weapon 1 | . . . . . . . 1 5 2 Peak Build Rating 63 | 6 8 10 15 18 40 39 60 52 63 Average Rating 29 | 5 6 9 12 16 32 35 43 49 52 On Entrance 22 | . 6 8 10 15 18 36 35 51 48 Naked Turns . | . . . . . . . . . . Heaviest Build 86 | 11 29 51 51 56 63 62 81 76 86 Greatest Support 60 | 40 40 40 40 40 35 40 60 50 60 Greatest Overweight (x) 25 | . . 1 1 5 5 2 3 25 8 Average Overweight (x) 1 | . . . 1 1 2 1 . 4 1 Largest Inventory Capacity 20 | 8 15 20 20 20 20 20 20 20 20 Average Capacity 18 | 7 12 17 20 20 20 20 20 20 20 Most Carried 20 | 5 14 15 19 20 20 20 20 20 20 Average Carried 17 | 3 10 14 16 19 19 19 19 19 19 Final Capacity 20 | 8 15 20 20 20 20 20 20 20 20 Final Carried 20 | 4 13 15 19 20 20 20 20 20 20 Class Distribution -------------------- 51% | Mutant 14% | Bothacker-Tank 12% | Scavenger-Mutant 8% | Scavenger-Tank 7% | Scavenger-Gunner Dominant Class ---------------- Mutant | -10/Materials Mutant | -10/Mines Mutant | -10/Exiles Mutant | -9/Mines Mutant | -8/Materials Gunner | -7/Factory Scavenger-Tank | -7/Garrison Bothacker-Tank | -7/Factory Scavenger-Mutant | -7/Garrison Resources | -11 -10 -10 -10 -9 -8 -7 -7 -7 -7 ----------- Run | Yrd Mat Min Exi Min Mat Fac Gar Fac Gar Matter Collected 3588 | 280 344 40 . 190 1647 50 447 367 223 Remotely . | . . . . . . . . . . Salvage Created 5290 | 266 375 31 . 127 1612 313 1275 689 602 Parts 248 | 18 27 7 . 8 88 13 40 25 22 Haulers Intercepted 2 | . 1 . . . 1 . . . . Recyclers Shooed 3 | 1 . . . . . . . 2 . Parts Field Recycled . | . . . . . . . . . . Retrieved Matter . | . . . . . . . . . . Parts Self-Destructed . | . . . . . . . . . . Prevented . | . . . . . . . . . . Kills | -11 -10 -10 -10 -9 -8 -7 -7 -7 -7 ------- Run | Yrd Mat Min Exi Min Mat Fac Gar Fac Gar Combat Hostiles Destroyed 115 | . 12 3 . 5 34 8 29 9 15 Guns 70 | . 11 . . 3 22 7 21 3 3 Cannons 4 | . . . . . . . 4 . . AOE 29 | . 1 3 . 2 12 . 1 1 9 Classes Destroyed 16 | 3 5 . . 1 4 1 1 . 1 Worker 5 | 2 . . . . 2 . . 1 . Builder 6 | . . . . . 6 . . . . Tunneler 8 | 5 1 1 . . . . . 1 . Hauler 2 | . 1 . . . 1 . . . . Recycler 6 | 1 . . . . 4 . . 1 . Operator 2 | . 1 . . . 1 . . . . Watcher 2 | . 1 . . . . . 1 . . Swarmer 32 | . 6 3 . 2 7 4 6 . 4 Grunt 44 | . 6 . . 2 22 2 6 4 2 Brawler 4 | . . . . 1 . . 2 . 1 Duelist 1 | . . . . . . . . . 1 Sentry 11 | . . . . . 3 1 3 4 . Specialist 1 | . . . . . 1 . . . . Hunter 2 | . . . . . 1 . . . 1 Programmer 13 | . . . . . . 1 5 1 6 Assembled 7 | . . . . . . . 7 . . Guerrilla 1 | . . . . . . . 1 . . Best Kill Streak 14 | 8 3 4 . 3 14 4 6 5 6 Combat Bots Only 11 | . 3 3 . 3 11 4 5 3 6 Max Kills in Single Turn 5 | 1 1 2 . 1 5 1 1 2 4 Gunslinging . | . . . . . . . . . . Exploded 5 | . 1 1 . 1 5 . 1 1 4 Melee . | . . . . . . . . . . Uniques/NPCs Destroyed . | . . . . . . . . . . Combat | -11 -10 -10 -10 -9 -8 -7 -7 -7 -7 -------- Run | Yrd Mat Min Exi Min Mat Fac Gar Fac Gar Hostile Shots Fired 828 | . 67 6 . 13 159 71 213 225 74 Missed 277 | . 18 1 . 5 45 23 66 99 20 Hits 551 | . 49 5 . 8 114 48 147 126 54 Melee 4 | . . . . 3 . . 1 . . Projectile 547 | . 49 5 . 5 114 48 146 126 54 AOE 1 | . . . . . . . 1 . . Critical Strikes 9 | . . . . 1 2 . 2 1 3 Damage Taken 7426 | 38 517 41 . 135 1604 610 1999 1175 1307 Core 1221 | . 123 . . 20 366 88 294 161 169 Absorbed by Shields . | . . . . . . . . . . Regen/Repaired (Parts) 49 | . . . . . 49 . . . . Core Remaining (%) 58 | 100 . . . 42 33 . . . . Volleys Fired 384 | 14 55 3 . 11 114 20 94 44 29 Largest 3 | 1 2 2 . 2 2 3 3 2 1 Hottest 250 | 40 60 50 . 56 122 183 250 250 250 Shots Fired 761 | 14 104 6 . 22 222 60 237 68 28 Gun 690 | 14 100 3 . 19 206 60 219 49 20 Cannon 27 | . . . . . . . 18 4 5 Launcher 29 | . 4 3 . 3 16 . . . 3 Special 15 | . . . . . . . . 15 . Kinetic 334 | . 65 3 . 19 172 . 6 49 20 Thermal 353 | . 35 . . . 34 60 215 4 5 Explosive 29 | . 4 3 . 3 16 . . . 3 Electromagnetic 30 | 14 . . . . . . 16 . . Robot Hit Streak 24 | 4 10 2 . 6 14 9 24 5 6 Robot Miss Streak 8 | 1 5 2 . 1 8 6 5 3 3 Penetration Max 1 | . . . . . . . . 1 . Secondary Targets 10 | . 1 . . . 2 1 6 . . Max Gunslinging Chain 1 | . 1 . . . 1 1 1 . . Shots Hit Robots 431 | 10 50 3 . 13 126 42 126 42 19 Core Hits 260 | 8 29 4 . 7 95 12 57 19 29 Critical Kills 1 | . . . . . 1 . . . . Critical Parts Destroyed . | . . . . . . . . . . Critical Strikes 21 | . . . . . 3 5 13 . . Burn 20 | . . . . . 2 5 13 . . Destroy 1 | . . . . . 1 . . . . Melee Attacks 2 | . . . . . . . 2 . . Impact . | . . . . . . . . . . Slashing . | . . . . . . . . . . Piercing . | . . . . . . . . . . Sneak Attacks . | . . . . . . . . . . Combat Hostiles . | . . . . . . . . . . Follow-up Attacks . | . . . . . . . . . . Damage Inflicted 11978 | 220 775 181 . 324 3679 950 2807 1449 1593 Guns 7650 | 134 499 26 . 164 2105 950 2467 840 465 Cannons 504 | . . . . . . . 200 143 161 Explosions 3824 | 86 276 155 . 160 1574 . 140 466 967 Melee . | . . . . . . . . . . Ramming . | . . . . . . . . . . Kinetic 3581 | . 282 26 . 164 1705 . 99 840 465 Thermal 5442 | 86 217 . . . 400 950 2549 609 631 Explosive 2662 | . 276 155 . 160 1574 . . . 497 Electromagnetic 293 | 134 . . . . . . 159 . . Impact . | . . . . . . . . . . Slashing . | . . . . . . . . . . Piercing . | . . . . . . . . . . Highest Corruption 8 | . . . . 4 . . 3 3 8 Average Corruption 2 | . . . . 4 . . 1 1 4 Corruption Purged 3 | . . . . . . . . 3 . Corruption Blocked . | . . . . . . . . . . Effects 28 | . . . . 2 . . 14 2 10 Message Errors 9 | . . . . . . . 5 1 3 Matter Fused 7 | . . . . . . . 4 1 2 Heat Flow Errors 1 | . . . . . . . . . 1 Energy Discharges 7 | . . . . 1 . . 5 . 1 Data Loss (minor) 2 | . . . . . . . . . 2 Data Loss (major) 1 | . . . . 1 . . . . . Weapon Failures 1 | . . . . . . . . . 1 Overload Shots . | . . . . . . . . . . Overflow Damage 74 | . 23 23 . . 13 . . 10 5 Projectiles 4 | . . . . . . . . . 4 Explosions 70 | . 23 23 . . 13 . . 10 1 Melee . | . . . . . . . . . . Knockbacks . | . . . . . . . . . . Impact . | . . . . . . . . . . Kinetic . | . . . . . . . . . . Secondary . | . . . . . . . . . . Self-Inflicted Damage 573 | 38 29 . . 16 . . 83 36 371 Shots 32 | 1 1 . . 1 . . 4 4 21 Rammed . | . . . . . . . . . . Targets Rammed . | . . . . . . . . . . Kicked . | . . . . . . . . . . Crushed . | . . . . . . . . . . Highest Temperature 377 | 12 76 . . 18 49 169 304 377 312 Average Temperature 54 | 12 24 . . 8 16 50 70 73 132 Received Heat Transfer 1739 | . 177 . . 18 666 141 455 282 . Siege Activations . | . . . . . . . . . . Martial Activations . | . . . . . . . . . . Shielding Activations . | . . . . . . . . . . Robots Disrupted . | . . . . . . . . . . Combat Hostiles . | . . . . . . . . . . Robots Corrupted . | . . . . . . . . . . Combat Hostiles . | . . . . . . . . . . Parts Fried . | . . . . . . . . . . Impact Corruptions . | . . . . . . . . . . Robots Melted 12 | . . . . . . 1 3 5 3 Combat Hostiles 12 | . . . . . . 1 3 5 3 Parts Melted 55 | . . . . . 2 7 21 10 15 Heat Transferred 14460 | 100 500 . . . 888 2072 5719 2761 2420 Parts Sabotaged . | . . . . . . . . . . Parts Stolen . | . . . . . . . . . . Parts Stripped . | . . . . . . . . . . Power Chain Reactions 2 | 2 . . . . . . . . . Alert | -11 -10 -10 -10 -9 -8 -7 -7 -7 -7 ------- Run | Yrd Mat Min Exi Min Mat Fac Gar Fac Gar Maximum Alert Level 5 | . . . . . 1 1 5 4 3 Low Security (%) 44 | 100 100 100 . 100 40 50 2 . . Level 1 15 | . . . . . 59 49 11 . 11 Level 2 10 | . . . . . . . 1 44 85 Level 3 12 | . . . . . . . 25 47 3 Level 4 7 | . . . . . . . 26 7 . Level 5 8 | . . . . . . . 33 . . High Security . | . . . . . . . . . . Max Security . | . . . . . . . . . . Peak Influence 2159 | 10 85 88 . 69 360 262 2159 1133 805 Initial 1133 | . . 3 . . 23 162 170 1133 387 Average 492 | 1 25 20 . 6 168 199 1210 784 581 Influence Increases 4912 | 40 358 88 . 158 1100 232 2229 257 450 Destroy 0b10 Robot/C 2580 | . 240 60 . 100 680 160 860 180 300 Destroy 0b10 Robot/NC 160 | 40 20 5 . . 70 . 10 15 . Destroy Leader 386 | . 54 10 . 20 132 40 40 60 30 Allied During Kill 105 | . . . . . . . 105 . . Successful Hack 121 | . 25 . . . 51 17 28 . . Disable Machine 105 | . . . . 15 60 . . . 30 Anti-Garrison Action 1000 | . . . . . . . 1000 . . Destroy Structure 245 | . 19 13 . 23 77 . 81 2 30 Lose Combat Pursuer 210 | . . . . . 30 15 105 . 60 Influence Decreases 4125 | 40 348 98 . 97 804 345 314 1863 216 Entered New Map 1506 | . . 7 . . 38 195 74 1026 166 Time Decay 1545 | 40 348 91 . 77 417 120 . 452 . Lost Part 340 | . . . . 20 50 30 120 70 50 Lost Ally 160 | . . . . . . . 120 40 . Purge Threat 574 | . . . . . 299 . . 275 . Squads Dispatched 20 | . 2 . . . 9 2 . 7 . Investigation 4 | . 1 . . . 2 1 . . . Extermination 2 | . . . . . . . . 2 . Reinforcement 9 | . 1 . . . 7 . . 1 . Assault 1 | . . . . . . . . 1 . Garrison 4 | . . . . . . 1 . 3 . Intercept . | . . . . . . . . . . Searches Triggered . | . . . . . . . . . . Construction Impeded 3 | . . . . . 3 . . . . Haulers Reinforced . | . . . . . . . . . . Active Scanning Responses . | . . . . . . . . . . Cargo Convoy Interrupts . | . . . . . . . . . . Alert ID Control Effect 2 | . . . . . . . . 2 . Stealth | -11 -10 -10 -10 -9 -8 -7 -7 -7 -7 --------- Run | Yrd Mat Min Exi Min Mat Fac Gar Fac Gar Distress Signals 13 | . . . . . 7 5 . 1 . Communications Jammed . | . . . . . . . . . . Distress Signals . | . . . . . . . . . . Times Spotted 194 | . 19 3 . 5 54 13 60 19 21 Peak Tracking Total 9 | . 3 3 . 3 5 6 9 5 5 Tactical Retreats 8 | . . . . . 2 1 4 . 1 Traps | -11 -10 -10 -10 -9 -8 -7 -7 -7 -7 ------- Run | Yrd Mat Min Exi Min Mat Fac Gar Fac Gar Traps Triggered 11 | . . . . . 1 1 6 1 2 Indirectly . | . . . . . . . . . . Trap Hack Attempts . | . . . . . . . . . . Triggered . | . . . . . . . . . . Disarmed . | . . . . . . . . . . Reprogrammed . | . . . . . . . . . . Reused . | . . . . . . . . . . Traps Extracted . | . . . . . . . . . . Installed . | . . . . . . . . . . Triggered . | . . . . . . . . . . Machines | -11 -10 -10 -10 -9 -8 -7 -7 -7 -7 ---------- Run | Yrd Mat Min Exi Min Mat Fac Gar Fac Gar Machines Disabled 15 | . . . . 1 4 . 6 . 4 Max in Single Turn 3 | . . . . 1 1 . 2 . 3 Garrison Relay 4 | . . . . . . . 4 . . Machines Repaired . | . . . . . . . . . . Machines Dismantled . | . . . . . . . . . . Machines Sabotaged . | . . . . . . . . . . Overloaded Fab Kills . | . . . . . . . . . . Hacking | -11 -10 -10 -10 -9 -8 -7 -7 -7 -7 --------- Run | Yrd Mat Min Exi Min Mat Fac Gar Fac Gar Machines Accessed 25 | . 8 . 2 . 6 2 3 4 . Terminals 19 | . 8 . . . 5 1 3 2 . Fabricators 1 | . . . . . . . . 1 . Repair Stations . | . . . . . . . . . . Recycling Units . | . . . . . . . . . . Scanalyzers 1 | . . . . . 1 . . . . Garrison Access 2 | . . . . . . 1 . 1 . Total Hacks 56 | . 18 . 2 . 17 6 5 8 . Successful 35 | . 10 . 2 . 12 2 3 6 . Failed 21 | . 8 . . . 5 4 2 2 . Catastrophic 3 | . . . . . 1 . 2 . . Database Lockouts . | . . . . . . . . . . Manual 31 | . 13 . 1 . 11 3 . 3 . Terminals 47 | . 18 . . . 16 4 5 4 . Fabricators 3 | . . . . . . . . 3 . Repair Stations . | . . . . . . . . . . Recycling Units . | . . . . . . . . . . Scanalyzers 1 | . . . . . 1 . . . . Garrison Access 3 | . . . . . . 2 . 1 . Terminal Hacks 12 | . 2 . 2 . 4 . 3 1 . Record 1 | . . . 1 . . . . . . Emergency Access Points 2 | . . . . . 1 . 1 . . Alert Level 1 | . . . . . . . . 1 . Unreport Threat 2 | . . . . . 2 . . . . Locate Traps 2 | . 2 . . . . . . . . Hauler Manifests 1 | . . . . . 1 . . . . Garrison Registry 1 | . . . . . . . 1 . . Patrol Navigation 1 | . . . . . . . 1 . . Proto ID Catalog 1 | . . . 1 . . . . . . Fabricator Hacks 2 | . . . . . . . . 2 . Network Status 1 | . . . . . . . . 1 . Build 1 | . . . . . . . . 1 . Repair Station Hacks . | . . . . . . . . . . Recycling Unit Hacks . | . . . . . . . . . . Scanalyzer 1 | . . . . . 1 . . . . Insert Component 1 | . . . . . 1 . . . . Garrison Access Hacks 2 | . . . . . . 1 . 1 . Unlock Access 2 | . . . . . . 1 . 1 . Unauthorized Hacks 18 | . 8 . . . 7 1 . 2 . Terminals 18 | . 8 . . . 7 1 . 2 . Assimilate 2 | . . . . . 2 . . . . Botnet 7 | . 3 . . . 2 1 . 1 . Skim 9 | . 5 . . . 3 . . 1 . Fabricators . | . . . . . . . . . . Repair Stations . | . . . . . . . . . . Recycling Units . | . . . . . . . . . . Scanalyzers . | . . . . . . . . . . Garrison Access . | . . . . . . . . . . Data Cores Recovered 1 | . 1 . . . . . . . . Used . | . . . . . . . . . . Hacking Detections 16 | . 4 . . . 5 2 2 3 . Full Trace Events 5 | . 1 . . . 1 1 2 . . Feedback Events . | . . . . . . . . . . Feedback Blocked . | . . . . . . . . . . Robot Schematics Acquired . | . . . . . . . . . . Robots Built . | . . . . . . . . . . Authchips . | . . . . . . . . . . Time . | . . . . . . . . . . Total Robot Build Rating . | . . . . . . . . . . Part Schematics Acquired . | . . . . . . . . . . Parts Built 2 | . . . . . . . . 2 . Authchips . | . . . . . . . . . . Time 117 | . . . . . . . . 117 . Total Part Build Rating 14 | . . . . . . . . 14 . Parts Repaired . | . . . . . . . . . . Time . | . . . . . . . . . . Parts Recycled . | . . . . . . . . . . Recycled Matter . | . . . . . . . . . . Retrieved Matter . | . . . . . . . . . . Retrieved Components . | . . . . . . . . . . Parts Scanalyzed . | . . . . . . . . . . Part Schematics Acquired . | . . . . . . . . . . Parts Damaged . | . . . . . . . . . . Bothacking | -11 -10 -10 -10 -9 -8 -7 -7 -7 -7 ------------ Run | Yrd Mat Min Exi Min Mat Fac Gar Fac Gar Used RIF Installer 2 | . . . . . . . 2 . . Alert ID Control 1 | . . . . . . . 1 . . Robots Hacked 6 | . . . . . . . 2 4 . Non-combat 1 | . . . . . . . . 1 . Combat 5 | . . . . . . . 2 3 . Robot Hacks Applied 9 | . . . . . . . 2 7 . parse_system 1 | . . . . . . . . 1 . purge_threat 2 | . . . . . . . . 2 . locate_traps 1 | . . . . . . . . 1 . find_garrison 1 | . . . . . . . . 1 . disable_weapons 1 | . . . . . . . 1 . . streamctrl_high 1 | . . . . . . . 1 . . formatsys_high 2 | . . . . . . . . 2 . Relay Couplers Released 24 | . . . . . . . 21 3 . Machine Destruction 17 | . . . . . . . 17 . . Programmers 7 | . . . . . . . 4 3 . Attached 4 | . . . . . . . 3 1 . Fabnet Peak Effective % . | . . . . . . . . . . Robots Rewired 7 | . . . . . . . 7 . . Allies Hacked . | . . . . . . . . . . Hacks Repelled . | . . . . . . . . . . Allies | -11 -10 -10 -10 -9 -8 -7 -7 -7 -7 -------- Run | Yrd Mat Min Exi Min Mat Fac Gar Fac Gar Total Allies 10 | . . . . . . . 8 2 . Largest Group 5 | . . . . . . . 5 2 . Highest-Rated Group 124 | . . . . . . . 124 37 . Highest-Rated Ally 40 | . . . . . . . 40 21 . Total Orders . | . . . . . . . . . . Ally Attacks 117 | . . . . . . . 102 15 . Total Damage 2043 | . . . . . . . 1784 259 . Kills 30 | . . . . . . . 28 2 . Allies Corrupted . | . . . . . . . . . . Allies Melted . | . . . . . . . . . . Intel | -11 -10 -10 -10 -9 -8 -7 -7 -7 -7 ------- Run | Yrd Mat Min Exi Min Mat Fac Gar Fac Gar Active Infowar (turns) 4672 | . 401 370 798 1237 . 216 1362 288 . Sensors 1 | . . . . . . . 1 . . Seismic 4672 | . 401 370 798 1237 . 216 1362 288 . Robot Analysis Total . | . . . . . . . . . . Derelict Logs Recovered 3 | . . 1 . 2 . . . . . Drone Launches . | . . . . . . . . . . Drone Recoveries . | . . . . . . . . . . Exploration | -11 -10 -10 -10 -9 -8 -7 -7 -7 -7 ------------- Run | Yrd Mat Min Exi Min Mat Fac Gar Fac Gar Turns Passed 10223 | 281 1392 370 798 1281 1634 255 2520 1127 565 Spaces Moved 3830 | 63 623 184 330 484 562 77 907 416 184 Core 20 | 15 . . . . . . . 5 . Treads 2449 | 48 623 184 330 463 . . 602 33 166 Legs 779 | . . . . . 314 77 305 83 . Wheels 564 | . . . . 21 248 . . 295 . Hover 18 | . . . . . . . . . 18 Flight . | . . . . . . . . . . Fastest Speed 50 | 50 160 160 240 155 110 193 160 150 240 Average Speed 204 | 133 160 193 240 236 187 225 219 191 252 Slowest Speed 1300 | 160 160 240 240 240 330 265 400 1300 560 Overloaded Moves . | . . . . . . . . . . Propulsion Burnouts . | . . . . . . . . . . Robots Hopped . | . . . . . . . . . . Potential Cave-ins . | . . . . . . . . . . Cave-ins Triggered . | . . . . . . . . . . Time Travels 1 | . . . . . . . 1 . . Exploration Rate (%) 46 | 5 88 47 59 99 49 3 78 10 29 Regions Visited 9 Branch Regions 3 Pre-discovered Areas 3 | . 1 . 1 1 . . . . . Known Exits Taken 4 | . 1 . . . 1 1 . 1 . Unknown Exits Taken 4 | 1 . 1 1 1 . . . . . Scrap Searched 3 | . . 1 . 2 . . . . . Spaces Dug . | . . . . . . . . . . Terrain Destroyed 155 | 6 17 16 . 27 74 . . . 15 Melee . | . . . . . . . . . . Projectile 3 | . . . . . . . . . 3 AOE 151 | 6 17 16 . 27 74 . . . 11 Terrain Rammed . | . . . . . . . . . . Walls Destroyed . | . . . . . . . . . . Machines Disabled . | . . . . . . . . . . Actions | -11 -10 -10 -10 -9 -8 -7 -7 -7 -7 --------- Run | Yrd Mat Min Exi Min Mat Fac Gar Fac Gar Total 5582 | 245 926 191 338 605 954 113 1264 690 256 Wait 974 | 150 224 . . 94 194 4 92 196 20 Move 3822 | 62 622 183 329 483 561 77 906 415 184 Hop . | . . . . . . . . . . Pick Up 106 | 10 14 2 6 5 18 5 36 7 3 Fast Attach 37 | 1 . . . . 14 1 8 7 6 Attach 49 | 6 2 . . 2 4 4 24 2 5 Detach 3 | . . . . . . . 1 1 1 Swap 50 | 1 4 3 . 5 20 . 11 5 1 Drop 91 | 1 5 . 3 5 29 2 29 12 5 Fire 384 | 14 55 3 . 11 114 20 94 44 29 Melee 2 | . . . . . . . 2 . . Ram . | . . . . . . . . . . Kick . | . . . . . . . . . . Crush . | . . . . . . . . . . Escape Stasis 12 | . . . . . . . 10 . 2 Rewire 52 | . . . . . . . 51 1 . Trap . | . . . . . . . . . . Miscellaneous . | . . . . . . . . . . Route ------- -11/Scrapyard -10/Materials (discovered 5 exits: *Mat x3 / *Min / *Sub) -10/Mines (discovered 3 exits: Mat x2 / *Exi) -10/Exiles -9/Mines (discovered 2 exits: *Mat x2) -8/Materials (discovered 3 exits: *Fac x3) -7/Factory (discovered 3 exits: [*Fac] / Sto / Gar) -7/Garrison (discovered 3 exits: *Fac x3) -7/Factory (discovered 2 exits: Sto / Gar) -7/Garrison History --------- Turn | Location | Event 13 | -11/Scrapyard | Discovered new exit (range 16) 282 | -11/Scrapyard | Entered Materials 302 | -10/Materials | Build established: Mutant 483 | -10/Materials | Discovered new exit (range 13) 651 | -10/Materials | Discovered new exit (range 5) 983 | -10/Materials | Discovered new exit (range 16) 1208 | -10/Materials | Discovered new exit (range 13) 1261 | -10/Materials | Learned Storage terminal intel 1315 | -10/Materials | Identified exit to Materials 1315 | -10/Materials | Identified exit to Subcaves 1315 | -10/Materials | Identified exit to Mines 1361 | -10/Materials | Loaded intel: 2 recycling unit locations 1396 | -10/Materials | Loaded intel: 13 trap records 1434 | -10/Materials | Learned 2 Mines zone layouts 1437 | -10/Materials | Learned 2 Materials zone layouts 1451 | -10/Materials | Learned location of 3 exits from Materials 1511 | -10/Materials | Learned Storage trap positions 1674 | -10/Materials | Entered Mines 1808 | -10/Mines | Found a damaged Exp. Sensor Array with a note attached 1814 | -10/Mines | Found Prototype Device 1889 | -10/Mines | Assembled infested the area 1951 | -10/Mines | Met 8R-AWN 2035 | -10/Mines | Discovered new exit (range 5) 2044 | -10/Mines | Entered Exiles 2104 | -10/Exiles | Welcomed by 8R-AWN 2145 | -10/Exiles | Met EX-HEX 2211 | -10/Exiles | Met EX-BIN 2242 | -10/Exiles | Aligned with FarCom system 2244 | -10/Exiles | Given EX-Vault access code 2299 | -10/Exiles | Opened EX-Vault 2316 | -10/Exiles | Found Firepult 2324 | -10/Exiles | Found Supersonic Drone Bay 2328 | -10/Exiles | Found Chronowheel 2374 | -10/Exiles | Warned to stay clear of 0b10 Research branches 2444 | -10/Exiles | Met EX-DEC 2454 | -10/Exiles | Learned location of Zion (-6) 2723 | -10/Exiles | Learned about 8R-AWN's background 2806 | -10/Exiles | Discovered new exit (range 15) 2842 | -10/Exiles | Stole three prototypes: Supersonic Drone Bay, Chronowheel, Firepult 2842 | -10/Exiles | Entered Mines 2843 | -9/Mines | Learned location of Storage (-7) 2876 | -9/Mines | Discovered new exit (range 12) 2882 | -9/Mines | Met a Derelict bent on vengeance 3408 | -9/Mines | Received a Rocket Launcher from a helpful Derelict 3426 | -9/Mines | Found DCF Scrap (13 items) 3825 | -9/Mines | Learned Materials stockpile data 4060 | -9/Mines | Found a Scrap Suit stashed away for nefarious purposes 4063 | -9/Mines | Core integrity fell below 50% 4096 | -9/Mines | Found Scrap Suit 4105 | -9/Mines | Discovered new exit (range 12) 4123 | -9/Mines | Entered Materials 4123 | -8/Materials | Evolved 4 slots: Propulsion x1, Utility x3 4124 | -8/Materials | Identified exit to Factory 4858 | -8/Materials | Identified Exp. Sensor Array 5480 | -8/Materials | Destroyed 11 combat bots 5657 | -8/Materials | Build established: Scavenger-Mutant 5721 | -8/Materials | Core integrity fell below 50% 5757 | -8/Materials | Entered Factory 5757 | -7/Factory | Evolved 2 slots: Utility x1, Weapon x1 5758 | -7/Factory | Identified exit to Storage 5759 | -7/Factory | FarCom data flow suspended 5938 | -7/Factory | Garrison activated, responded to threat 5956 | -7/Factory | Discovered new exit (range 5) 6012 | -7/Factory | Identified exit to Garrison 6012 | -7/Factory | Entered Garrison 6164 | -7/Garrison | Triggered checkpoint 6259 | -7/Garrison | Garrison Relay disabled 6325 | -7/Garrison | Build established: Scavenger-Tank 6360 | -7/Garrison | Triggered checkpoint 6422 | -7/Garrison | Lost 3 allies 6662 | -7/Garrison | Discovered new exit (range 14) 6702 | -7/Garrison | Build established: Scavenger-Gunner 6762 | -7/Garrison | Triggered checkpoint 6880 | -7/Garrison | Triggered checkpoint 6901 | -7/Garrison | Installed Relay Interface Framework 6934 | -7/Garrison | Garrison Relay disabled 6950 | -7/Garrison | Assembled breached garrison interior 7029 | -7/Garrison | Garrison Relay disabled 7310 | -7/Garrison | Build established: Scavenger-Tank 7318 | -7/Garrison | Discovered new exit (range 11) 7407 | -7/Garrison | Lost 6 parts (1p2n3u) 7664 | -7/Garrison | Discovered new exit (range 26) 7664 | -7/Garrison | Discovered new exit (range 32) 7664 | -7/Garrison | Discovered new exit (range 69) 7667 | -7/Garrison | Activated Chronowheel 7667 | -7/Garrison | Spacetime reconverged on an earlier point 7678 | -7/Garrison | Garrison Relay disabled 8180 | -7/Garrison | Core integrity fell below 50% 8204 | -7/Garrison | Expanded RIF knowledge: Alert ID Control 8328 | -7/Garrison | Build established: Bothacker-Tank 8532 | -7/Garrison | Entered Factory 8755 | -7/Factory | Found Prototype Launcher 8755 | -7/Factory | Identified Rocket Array 9046 | -7/Factory | Fabricated Hvy. Disruptor Cannon? 9332 | -7/Factory | First assault squad dispatched 9525 | -7/Factory | Lost 5 parts (2n2u1w) 9647 | -7/Factory | Identified exit to Garrison 9659 | -7/Factory | Entered Garrison 9726 | -7/Garrison | Core integrity fell below 20% 9865 | -7/Garrison | Triggered checkpoint 9916 | -7/Garrison | Heavy support dispatched to Factory 10174 | -7/Garrison | Heavy support dispatched to Factory 10195 | -7/Garrison | Triggered checkpoint 10207 | -7/Garrison | Triggered checkpoint 10224 | -7/Garrison | Heavy support dispatched to Factory 10224 | -7/Garrison | Destroyed by S-27 Virus with Autogun Last Messages --------------- 10137_ Slug penetrates Wall. 10139_ Dropped Imp. Cooling System. 10145_ Acquired Remote Datajack. 10151_ Acquired Gravmag System. 10163_ Acquired 44 matter. 10169_ Acquired 43 matter. 10174_ ALERT: Dispatching Heavy support to Factory. 10186_ LCFLSPYOCL5TJDCJIWGN<9EARK 10195_ Beams of light sweep through the air. An alarm sounds. 10207_ System corrupted: Heat flow error (+143). 10207_ Lgt. Treads destroyed. 10207_ Destroyed Lgt. Treads. 10207_ B-48 Gladiator destroyed. 10207_ L-41 Fighter destroyed. 10207_ Beams of light sweep through the air. An alarm sounds. 10210_ S-27 Virus destroyed. 10216_ Gravmag System destroyed. 10218_ Imp. Medium Armor Plating destroyed. 10220_ System corrupted: Rocket Array failed to launch. 10224_ ALERT: Dispatching Heavy support to Factory. Map ----- +----------------------------------------------------+ | ?????????????????????????????????????????????????? | | ?????????????????????????????????????????????????? | | ?????????????????????????????????????????????????? | | ?????????????????????????????????????????????????? | | ?????????????????????????????????????????????????? | | ?????????????????????????????????????????????????? | | ?????????????????????????????????????????????????? | | ?????????????????????????????????????????????????? | | ?????????????????????????????????????????????????? | | ?????????????????????????????????????????????????? | | ?????????????????????????????????????????????????? | | ?????????????????????????????????????????????????? | | ?????????????????????????????????????????????????? | | ?????????????????????????????????????????????????? | | ???????????? ##"???######????????????????????????? | | ???????????? ?? ????????????????????????? | | ???????????? ?? ????????????????????????? | | ????????????? ?? ????????????????????????? | | ?????????? ??? ?# #????????????????????????? | | ??????????? # ## ###??????????????????????? | | ????????????s s ???????????????????????? | | ??????????? ???????????????????????? | | ?????????????? ????????????????????????? | | ????????????????? ??????????######????????? | | ??????????????# ????# ###????????# ########?? | | ?????????# ## ## @######### # """### | | ???????? [ %![! # #"" | | ???????? % !!* # #" | | ?????????# = [ ### ####[!*#????# #" | | ?????????## # [%=# ##?? #??# ####### # | | ??????????????# ?# ???? #??# ! | | ??????????????##???###????? #??# ####### | | ????????????????????????????#??# #?????# | | ???????????????????????????????# #?????# " | | ???????????????????????????????# #?????# " "" | | ???????????????????????????????# #?????##### #### | | ???????????????????????????????# #??????????##??? | | ???????????????????????????????# #??????????????? | | ???????????????????????######### #??????????????? | | ???????????????????????# #??????????????? | | ???????????????????????# ####### ############???? | | ???????????????????????# #?????# #???? | | ???????????????????????#%###???# #???? | | ???????????????????????# #???########### #???? | | ???????????????????????# #?????????????# #???? | | ???????????????????????# #?????????????#####???? | | ???????????????????????# ###?????????????????????? | | ???????????????????????# #???????????????????????? | | ???????????????????????# #???????????????????????? | | ???????????????????????# #???????????????????????? | +----------------------------------------------------+ Best States ------------- Heat Dissipation 76 Energy Generation 19 Energy Capacity 315 Matter Stores 300 Matter Capacity 300 Sight Range 16 Terrain Scan Density 10 Armor Coverage 375 Evasion (%) 50 Targeting Accuracy 5 Recoil Reduction 3 Offensive Hacking 10 Relay Coupler Types 3 Relay Coupler Value 94 Item Schematics ----------------- None Robot Schematics ------------------ None Fabricated ------------ Hvy. Disruptor Cannon | x2 | -7/Factory | Preloaded Repaired ---------- Nothing Alien Tech Used ----------------- None Achievements -------------- None Challenges ------------ None Game ------ Seed NuclearReflectiveCyclogen Manual? 0 Play Time 01:06:05 Cumulative 175.1 hours Start 2025.09.11 @ 11:05:33 End 2025.09.12 @ 09:52:13 Sessions 1 Manual Loads 0 Difficulty Rogue Special Mode None Game No. 242 Rogue 242 Adventurer 0 Explorer 0 Win Type - Total 2 Types 2/0/0/0/0/0/0/0/0/0 Lore% 72 Gallery% 69 Achievement% 60 Wizard Run 0 Options --------- Layout 0 ASCII 0 Keyboard 0 Movement Mouse Keybinds 0 Fullscreen 1 Font 16/SmallcapsGlow Map View 75x55 Zoom Use 0% Tactical HUD 1 Map Filters NONE Filters NONE Steam 1 RUN: 3d816124-e7bb-4a6c-b490-c789debc0774